[Event "Early-Titled-Tuesday-Blitz-November-28-2023"]
[Site "Chess.com"]
[Date "2023.11.28"]
[Round "3"]
[White "Laico"]
[Black "cthake"]
[Result "1-0"]
[WhiteElo "2337"]
[BlackElo "1908"]
[TimeControl "180+1"]
[EndTime "8:24:06 PST"]
[Termination "Laico won by resignation"]

1. e4 {[%clk 0:03:00.9]} 1... e6 {[%clk 0:02:58.8]} 2. d4 {[%clk 0:03:00.5]}
2... d5 {[%clk 0:02:59]} 3. Nd2 {[%clk 0:03:01.1]} 3... Nf6 {[%clk 0:02:58.2]}
4. Bd3 {[%clk 0:03:01.2]} 4... c5 {[%clk 0:02:50.2]} 5. e5 {[%clk 0:03:01.3]}
5... Nfd7 {[%clk 0:02:50]} 6. c3 {[%clk 0:03:02.2]} 6... Nc6 {[%clk 0:02:49.9]}
7. Ne2 {[%clk 0:03:01.1]} 7... f6 {[%clk 0:02:46.1]} 8. Nf4 {[%clk 0:02:53.7]}
8... Qe7 {[%clk 0:02:21.9]} 9. Qh5+ {[%clk 0:02:51]} 9... Kd8 {[%clk 0:02:13.2]}
10. Ng6 {[%clk 0:02:41.8]} 10... hxg6 {[%clk 0:02:11.8]} 11. Qxh8 {[%clk
0:02:42.7]} 11... cxd4 {[%clk 0:02:10]} 12. exf6 {[%clk 0:02:33.7]} 12... Qxf6
{[%clk 0:02:04.8]} 13. Nf3 {[%clk 0:02:33.1]} 13... dxc3 {[%clk 0:02:04.1]} 14.
Bg5 {[%clk 0:02:32.6]} 14... cxb2 {[%clk 0:02:00.1]} 15. Rb1 {[%clk 0:02:32.2]}
1-0

[Event "Early-Titled-Tuesday-Blitz-November-28-2023"]
[Site "Chess.com"]
[Date "2023.11.28"]
[Round "3"]
[White "arenal72"]
[Black "bescmelasti"]
[Result "0-1"]
[WhiteElo "2493"]
[BlackElo "2652"]
[TimeControl "180+1"]
[EndTime "8:24:21 PST"]
[Termination "bescmelasti won by resignation"]

1. Nf3 {[%clk 0:03:00.9]} 1... c5 {[%clk 0:03:00]} 2. g3 {[%clk 0:03:00.1]} 2...
Nf6 {[%clk 0:03:00.4]} 3. Bg2 {[%clk 0:02:59.4]} 3... g6 {[%clk 0:03:01.2]} 4.
O-O {[%clk 0:02:59.1]} 4... Bg7 {[%clk 0:03:02.1]} 5. d3 {[%clk 0:02:56.8]} 5...
O-O {[%clk 0:03:03]} 6. e4 {[%clk 0:02:56.4]} 6... d5 {[%clk 0:03:02.9]} 7. Nbd2
{[%clk 0:02:54.3]} 7... Nc6 {[%clk 0:03:03.2]} 8. c3 {[%clk 0:02:52.9]} 8... e5
{[%clk 0:03:02.8]} 9. a4 {[%clk 0:02:43]} 9... Re8 {[%clk 0:02:58.9]} 10. exd5
{[%clk 0:02:40.6]} 10... Nxd5 {[%clk 0:02:58.7]} 11. Nc4 {[%clk 0:02:40.5]}
11... h6 {[%clk 0:02:56.2]} 12. Re1 {[%clk 0:02:33.4]} 12... Qc7 {[%clk
0:02:32.7]} 13. Nfxe5 {[%clk 0:02:17.5]} 13... Nxe5 {[%clk 0:02:30.9]} 14. Bxd5
{[%clk 0:02:13.1]} 14... Bg4 {[%clk 0:02:29.9]} 15. f3 {[%clk 0:02:09.4]} 15...
Bxf3 {[%clk 0:02:18.3]} 16. Bxf3 {[%clk 0:02:03.2]} 16... Nxf3+ {[%clk
0:02:17.6]} 17. Qxf3 {[%clk 0:02:04.1]} 17... Rxe1+ {[%clk 0:02:17.5]} 18. Kf2
{[%clk 0:02:05]} 18... Rae8 {[%clk 0:02:16.6]} 19. Ne3 {[%clk 0:02:04.7]} 19...
R8xe3 {[%clk 0:02:14.5]} 0-1

[Event "Early-Titled-Tuesday-Blitz-November-28-2023"]
[Site "Chess.com"]
[Date "2023.11.28"]
[Round "3"]
[White "TedBelanoff"]
[Black "Alen_Yeremyann"]
[Result "0-1"]
[WhiteElo "2327"]
[BlackElo "2776"]
[TimeControl "180+1"]
[EndTime "8:24:29 PST"]
[Termination "Alen_Yeremyann won by checkmate"]

1. b4 {[%clk 0:03:00.9]} 1... e6 {[%clk 0:02:59.4]} 2. a3 {[%clk 0:03:00.5]}
2... Nf6 {[%clk 0:03:00.1]} 3. Bb2 {[%clk 0:03:00.2]} 3... Be7 {[%clk
0:03:00.8]} 4. g3 {[%clk 0:03:00.7]} 4... O-O {[%clk 0:03:01.4]} 5. Bg2 {[%clk
0:03:01.3]} 5... d5 {[%clk 0:03:02.1]} 6. Nf3 {[%clk 0:03:01.1]} 6... a5 {[%clk
0:03:02.5]} 7. O-O {[%clk 0:03:01.5]} 7... axb4 {[%clk 0:03:02.6]} 8. axb4
{[%clk 0:03:01.9]} 8... Rxa1 {[%clk 0:03:03.5]} 9. Bxa1 {[%clk 0:03:02.5]} 9...
Bxb4 {[%clk 0:03:03.9]} 10. Ne5 {[%clk 0:03:03]} 10... Be7 {[%clk 0:03:04.2]}
11. f4 {[%clk 0:03:02]} 11... Nbd7 {[%clk 0:03:04.3]} 12. d3 {[%clk 0:03:01.1]}
12... Nxe5 {[%clk 0:03:04.2]} 13. fxe5 {[%clk 0:03:01.5]} 13... Ng4 {[%clk
0:03:04.9]} 14. Qd2 {[%clk 0:03:00.8]} 14... Bg5 {[%clk 0:03:04.8]} 15. Qb4
{[%clk 0:02:55.6]} 15... Be3+ {[%clk 0:03:05.2]} 16. Kh1 {[%clk 0:02:53.9]}
16... Nf2+ {[%clk 0:03:04.4]} 17. Rxf2 {[%clk 0:02:54.2]} 17... Bxf2 {[%clk
0:03:05.3]} 18. Nd2 {[%clk 0:02:52.6]} 18... Be3 {[%clk 0:03:05.2]} 19. Nf1
{[%clk 0:02:52.2]} 19... Bg5 {[%clk 0:03:04.5]} 20. h4 {[%clk 0:02:51.2]} 20...
Be7 {[%clk 0:03:04.4]} 21. Qg4 {[%clk 0:02:47.6]} 21... f5 {[%clk 0:03:04.1]}
22. Qh3 {[%clk 0:02:40.3]} 22... f4 {[%clk 0:03:03.3]} 23. g4 {[%clk 0:02:39.5]}
23... Bxh4 {[%clk 0:03:03.3]} 24. Nh2 {[%clk 0:02:39.6]} 24... Bg3 {[%clk
0:03:03.4]} 25. Nf3 {[%clk 0:02:39.6]} 25... c5 {[%clk 0:03:03.3]} 26. e4 {[%clk
0:02:35.2]} 26... dxe4 {[%clk 0:03:03.3]} 27. Nd2 {[%clk 0:02:28.6]} 27... exd3
{[%clk 0:03:02.7]} 28. Be4 {[%clk 0:02:28.8]} 28... h6 {[%clk 0:03:02.4]} 29.
Qh5 {[%clk 0:02:26.4]} 29... Qe8 {[%clk 0:02:59.1]} 30. Bg6 {[%clk 0:02:26.1]}
30... Qc6+ {[%clk 0:02:54.9]} 31. Be4 {[%clk 0:02:25.9]} 31... dxc2 {[%clk
0:02:53]} 32. Bb2 {[%clk 0:02:21.1]} 32... Qe8 {[%clk 0:02:49.1]} 33. Bg6 {[%clk
0:02:20.8]} 33... Qd7 {[%clk 0:02:49.4]} 34. Bc1 {[%clk 0:02:09.2]} 34... b5
{[%clk 0:02:48.1]} 35. g5 {[%clk 0:02:01.3]} 35... Bb7+ {[%clk 0:02:49]} 36. Kg1
{[%clk 0:02:01]} 36... Qd4+ {[%clk 0:02:48.5]} 37. Kf1 {[%clk 0:02:01.5]} 37...
Qf2# {[%clk 0:02:48.9]} 0-1

[Event "Early-Titled-Tuesday-Blitz-November-28-2023"]
[Site "Chess.com"]
[Date "2023.11.28"]
[Round "3"]
[White "Burovic00"]
[Black "Byniolus"]
[Result "0-1"]
[WhiteElo "2559"]
[BlackElo "2822"]
[TimeControl "180+1"]
[EndTime "8:24:51 PST"]
[Termination "Byniolus won by resignation"]

1. e4 {[%clk 0:03:00.9]} 1... d6 {[%clk 0:02:59.8]} 2. Nc3 {[%clk 0:03:00.6]}
2... Nf6 {[%clk 0:03:00.7]} 3. f4 {[%clk 0:03:00.8]} 3... d5 {[%clk 0:03:00.9]}
4. e5 {[%clk 0:03:00.7]} 4... d4 {[%clk 0:03:01.5]} 5. Nb5 {[%clk 0:03:01.4]}
5... Nd5 {[%clk 0:02:55.6]} 6. Nxd4 {[%clk 0:03:01.4]} 6... Nxf4 {[%clk
0:02:55.4]} 7. Ngf3 {[%clk 0:03:02]} 7... c5 {[%clk 0:02:48.4]} 8. Nb3 {[%clk
0:03:02.2]} 8... e6 {[%clk 0:02:41.5]} 9. d4 {[%clk 0:03:01.2]} 9... Ng6 {[%clk
0:02:38.9]} 10. dxc5 {[%clk 0:02:48.5]} 10... Qxd1+ {[%clk 0:02:39.8]} 11. Kxd1
{[%clk 0:02:49.1]} 11... Nc6 {[%clk 0:02:38.2]} 12. Bb5 {[%clk 0:02:29.8]} 12...
Bd7 {[%clk 0:02:37.9]} 13. Bxc6 {[%clk 0:02:29.5]} 13... Bxc6 {[%clk 0:02:38.8]}
14. Re1 {[%clk 0:02:29.8]} 14... O-O-O+ {[%clk 0:02:26.8]} 15. Bd2 {[%clk
0:02:29.6]} 15... Nf4 {[%clk 0:02:05.5]} 16. Nfd4 {[%clk 0:02:14.1]} 16... Nxg2
{[%clk 0:01:53.2]} 17. Nxc6 {[%clk 0:02:13.3]} 17... bxc6 {[%clk 0:01:50.2]} 18.
Re4 {[%clk 0:02:12.8]} 18... Be7 {[%clk 0:01:43.2]} 19. Rg4 {[%clk 0:02:11.8]}
19... Ne3+ {[%clk 0:01:41.1]} 0-1

[Event "Early-Titled-Tuesday-Blitz-November-28-2023"]
[Site "Chess.com"]
[Date "2023.11.28"]
[Round "3"]
[White "salomez"]
[Black "LionKing2367890"]
[Result "1-0"]
[WhiteElo "2405"]
[BlackElo "2206"]
[TimeControl "180+1"]
[EndTime "8:24:54 PST"]
[Termination "salomez won by resignation"]

1. e4 {[%clk 0:03:00.9]} 1... e5 {[%clk 0:03:00.1]} 2. Nf3 {[%clk 0:03:00.5]}
2... Nc6 {[%clk 0:03:00.7]} 3. d4 {[%clk 0:03:00.4]} 3... exd4 {[%clk
0:03:00.7]} 4. Nxd4 {[%clk 0:03:00.3]} 4... Nf6 {[%clk 0:03:00.8]} 5. Nxc6
{[%clk 0:02:52.7]} 5... bxc6 {[%clk 0:03:00.3]} 6. Bd3 {[%clk 0:02:52.5]} 6...
d5 {[%clk 0:02:59.1]} 7. exd5 {[%clk 0:02:50.6]} 7... cxd5 {[%clk 0:03:00]} 8.
O-O {[%clk 0:02:48.6]} 8... Be7 {[%clk 0:02:58.9]} 9. c4 {[%clk 0:02:48.1]} 9...
O-O {[%clk 0:02:54.3]} 10. cxd5 {[%clk 0:02:45.6]} 10... Qxd5 {[%clk 0:02:54.1]}
11. Nc3 {[%clk 0:02:43.7]} 11... Qd7 {[%clk 0:02:41.4]} 12. Qf3 {[%clk
0:02:13.4]} 12... Rb8 {[%clk 0:02:38.6]} 13. Rd1 {[%clk 0:02:12.4]} 13... Bb7
{[%clk 0:02:14.8]} 14. Bxh7+ {[%clk 0:01:47.2]} 14... Kxh7 {[%clk 0:02:13.1]}
15. Rxd7 {[%clk 0:01:45.6]} 15... Bxf3 {[%clk 0:02:10.4]} 16. Rxe7 {[%clk
0:01:44.8]} 16... Ba8 {[%clk 0:02:01.6]} 1-0

[Event "Early-Titled-Tuesday-Blitz-November-28-2023"]
[Site "Chess.com"]
[Date "2023.11.28"]
[Round "3"]
[White "F-Ghaith2021"]
[Black "defenceboy"]
[Result "0-1"]
[WhiteElo "2515"]
[BlackElo "2828"]
[TimeControl "180+1"]
[EndTime "8:24:55 PST"]
[Termination "defenceboy won by resignation"]

1. e4 {[%clk 0:02:59.4]} 1... c6 {[%clk 0:02:59.5]} 2. d4 {[%clk 0:02:59]} 2...
d5 {[%clk 0:03:00.3]} 3. exd5 {[%clk 0:02:59.9]} 3... cxd5 {[%clk 0:03:00.8]} 4.
Bd3 {[%clk 0:02:59.9]} 4... Nc6 {[%clk 0:03:01]} 5. c3 {[%clk 0:02:59.7]} 5...
Qc7 {[%clk 0:03:01.3]} 6. Nf3 {[%clk 0:02:57]} 6... Bg4 {[%clk 0:02:58.2]} 7.
O-O {[%clk 0:02:53.6]} 7... e6 {[%clk 0:02:58.3]} 8. h3 {[%clk 0:02:51.9]} 8...
Bh5 {[%clk 0:02:58.2]} 9. Nbd2 {[%clk 0:02:50.4]} 9... Bd6 {[%clk 0:02:58.4]}
10. Re1 {[%clk 0:02:48.9]} 10... Nge7 {[%clk 0:02:59]} 11. b4 {[%clk 0:02:42.1]}
11... h6 {[%clk 0:02:53.8]} 12. b5 {[%clk 0:02:38.8]} 12... Na5 {[%clk
0:02:52.7]} 13. Bb2 {[%clk 0:02:32.2]} 13... O-O {[%clk 0:02:50.2]} 14. a4
{[%clk 0:02:25.2]} 14... Rac8 {[%clk 0:02:49.6]} 15. Rc1 {[%clk 0:02:20.8]}
15... Bf4 {[%clk 0:02:42.6]} 16. g4 {[%clk 0:01:59.3]} 16... Bg6 {[%clk
0:02:41.9]} 17. Qe2 {[%clk 0:01:48.5]} 17... Nc4 {[%clk 0:02:38.2]} 18. Bxc4
{[%clk 0:01:45]} 18... dxc4 {[%clk 0:02:38]} 19. Rcd1 {[%clk 0:01:41]} 19... Bd3
{[%clk 0:02:27.8]} 0-1

[Event "Early-Titled-Tuesday-Blitz-November-28-2023"]
[Site "Chess.com"]
[Date "2023.11.28"]
[Round "3"]
[White "OK97"]
[Black "Jospem"]
[Result "0-1"]
[WhiteElo "2780"]
[BlackElo "3051"]
[TimeControl "180+1"]
[EndTime "8:25:46 PST"]
[Termination "Jospem won by resignation"]

1. e4 {[%clk 0:03:00.9]} 1... c5 {[%clk 0:03:00.3]} 2. Nf3 {[%clk 0:02:59.9]}
2... d6 {[%clk 0:03:00.9]} 3. Bb5+ {[%clk 0:02:56.2]} 3... Nd7 {[%clk
0:02:59.5]} 4. O-O {[%clk 0:02:52.5]} 4... a6 {[%clk 0:02:59.5]} 5. Be2 {[%clk
0:02:52.7]} 5... Ngf6 {[%clk 0:02:58.8]} 6. d3 {[%clk 0:02:53.1]} 6... b6 {[%clk
0:02:57.8]} 7. c4 {[%clk 0:02:48.8]} 7... Bb7 {[%clk 0:02:58]} 8. Nc3 {[%clk
0:02:49.2]} 8... g6 {[%clk 0:02:58.6]} 9. Qc2 {[%clk 0:02:37.9]} 9... Bg7 {[%clk
0:02:52.6]} 10. Be3 {[%clk 0:02:26.5]} 10... O-O {[%clk 0:02:39.4]} 11. h3
{[%clk 0:02:26.3]} 11... Ne5 {[%clk 0:02:37.2]} 12. d4 {[%clk 0:02:14.4]} 12...
cxd4 {[%clk 0:02:31.5]} 13. Nxd4 {[%clk 0:02:03.7]} 13... Rc8 {[%clk 0:02:31.1]}
14. Qb3 {[%clk 0:02:03.8]} 14... Nxe4 {[%clk 0:02:14.2]} 15. Nd5 {[%clk
0:01:58.5]} 15... b5 {[%clk 0:02:01.8]} 16. Rac1 {[%clk 0:01:45.5]} 16... Nc5
{[%clk 0:01:58.4]} 17. Qa3 {[%clk 0:00:58.7]} 17... Nxc4 {[%clk 0:01:57.2]} 18.
Bxc4 {[%clk 0:00:58]} 18... bxc4 {[%clk 0:01:58]} 0-1

[Event "Early-Titled-Tuesday-Blitz-November-28-2023"]
[Site "Chess.com"]
[Date "2023.11.28"]
[Round "3"]
[White "seopie"]
[Black "GoltsevDmitry2000"]
[Result "1-0"]
[WhiteElo "2873"]
[BlackElo "2680"]
[TimeControl "180+1"]
[EndTime "8:25:46 PST"]
[Termination "seopie won by resignation"]

1. d4 {[%clk 0:03:00.9]} 1... Nf6 {[%clk 0:03:00]} 2. c4 {[%clk 0:03:00.1]} 2...
e6 {[%clk 0:03:00]} 3. Nc3 {[%clk 0:03:00.2]} 3... Bb4 {[%clk 0:03:00.3]} 4. e3
{[%clk 0:02:58.7]} 4... b6 {[%clk 0:03:00.6]} 5. Ne2 {[%clk 0:02:55.7]} 5... Bb7
{[%clk 0:03:01.1]} 6. a3 {[%clk 0:02:54.8]} 6... Be7 {[%clk 0:03:00.1]} 7. Nf4
{[%clk 0:02:53.6]} 7... O-O {[%clk 0:03:00.2]} 8. Bd3 {[%clk 0:02:52.4]} 8... a5
{[%clk 0:03:00.2]} 9. O-O {[%clk 0:02:50.9]} 9... d6 {[%clk 0:03:00.8]} 10. b3
{[%clk 0:02:50]} 10... Nbd7 {[%clk 0:03:01.4]} 11. Bc2 {[%clk 0:02:43]} 11... e5
{[%clk 0:03:01.4]} 12. Nfd5 {[%clk 0:02:42.9]} 12... c6 {[%clk 0:03:00.5]} 13.
Nxe7+ {[%clk 0:02:40.8]} 13... Qxe7 {[%clk 0:03:01.4]} 14. e4 {[%clk 0:02:41]}
14... exd4 {[%clk 0:03:01.3]} 15. Qxd4 {[%clk 0:02:40.6]} 15... Nc5 {[%clk
0:03:01.9]} 16. Bb2 {[%clk 0:02:37.9]} 16... Qe5 {[%clk 0:03:00.5]} 17. Rad1
{[%clk 0:02:36.4]} 17... Rad8 {[%clk 0:02:58.7]} 18. f4 {[%clk 0:02:28.4]} 18...
Qxd4+ {[%clk 0:02:56.9]} 19. Rxd4 {[%clk 0:02:28.3]} 19... Ne6 {[%clk
0:02:57.8]} 20. Rd2 {[%clk 0:02:27.8]} 20... Rfe8 {[%clk 0:02:58.7]} 21. g3
{[%clk 0:02:27.4]} 21... Nc5 {[%clk 0:02:53.5]} 22. Rd4 {[%clk 0:02:26.4]} 22...
Ne6 {[%clk 0:02:52.3]} 23. Rd2 {[%clk 0:02:24.7]} 23... Nc5 {[%clk 0:02:52.9]}
24. Re1 {[%clk 0:02:23.1]} 24... d5 {[%clk 0:02:50.6]} 25. e5 {[%clk 0:02:20.8]}
25... Nfe4 {[%clk 0:02:50.6]} 26. Nxe4 {[%clk 0:02:18.9]} 26... Nxe4 {[%clk
0:02:46.6]} 27. Rde2 {[%clk 0:02:11.3]} 27... Nc5 {[%clk 0:02:41]} 28. cxd5
{[%clk 0:02:08.8]} 28... cxd5 {[%clk 0:02:40.6]} 29. Bd4 {[%clk 0:02:08.6]}
29... Ne6 {[%clk 0:02:40.3]} 30. Bxb6 {[%clk 0:02:08.2]} 30... Ra8 {[%clk
0:02:40.9]} 31. Rd2 {[%clk 0:02:03.7]} 31... Rec8 {[%clk 0:02:37.8]} 32. Bf5
{[%clk 0:01:54.6]} 32... Rc3 {[%clk 0:02:34.4]} 33. Re3 {[%clk 0:01:54.3]} 33...
Rac8 {[%clk 0:02:32.4]} 34. Rxc3 {[%clk 0:01:53]} 34... Rxc3 {[%clk 0:02:33.3]}
35. Bc2 {[%clk 0:01:45.2]} 35... a4 {[%clk 0:02:25.4]} 36. bxa4 {[%clk 0:01:44]}
36... Rxa3 {[%clk 0:02:26.3]} 37. a5 {[%clk 0:01:43.9]} 37... Ra1+ {[%clk
0:02:21.6]} 38. Kf2 {[%clk 0:01:43.8]} 38... Ra2 {[%clk 0:02:21.9]} 39. Ke2
{[%clk 0:01:40.2]} 39... d4 {[%clk 0:02:16.5]} 40. Bxh7+ {[%clk 0:01:38.9]} 1-0

[Event "Early-Titled-Tuesday-Blitz-November-28-2023"]
[Site "Chess.com"]
[Date "2023.11.28"]
[Round "3"]
[White "DDTerziev04"]
[Black "The_Sherman_Variation"]
[Result "1-0"]
[WhiteElo "2139"]
[BlackElo "2515"]
[TimeControl "180+1"]
[EndTime "8:25:58 PST"]
[Termination "DDTerziev04 won on time"]

1. d4 {[%clk 0:02:59.4]} 1... d5 {[%clk 0:02:59.1]} 2. Nf3 {[%clk 0:02:58.5]}
2... c5 {[%clk 0:02:56.6]} 3. e3 {[%clk 0:02:58.2]} 3... Nc6 {[%clk 0:02:52.2]}
4. Be2 {[%clk 0:02:57.9]} 4... Nf6 {[%clk 0:02:51.9]} 5. O-O {[%clk 0:02:57.3]}
5... Bg4 {[%clk 0:02:52.3]} 6. b3 {[%clk 0:02:55.1]} 6... cxd4 {[%clk 0:02:49]}
7. Nxd4 {[%clk 0:02:52.5]} 7... Bxe2 {[%clk 0:02:44.3]} 8. Qxe2 {[%clk
0:02:53.4]} 8... Nxd4 {[%clk 0:02:38.8]} 9. exd4 {[%clk 0:02:54.3]} 9... e6
{[%clk 0:02:39.3]} 10. Bb2 {[%clk 0:02:53.4]} 10... Bd6 {[%clk 0:02:38.4]} 11.
c4 {[%clk 0:02:51.9]} 11... O-O {[%clk 0:02:36.7]} 12. c5 {[%clk 0:02:50.1]}
12... Bc7 {[%clk 0:02:33.1]} 13. Nd2 {[%clk 0:02:49.4]} 13... Re8 {[%clk
0:02:27.6]} 14. f4 {[%clk 0:02:46.7]} 14... Ba5 {[%clk 0:02:17.1]} 15. Nf3
{[%clk 0:02:39.8]} 15... Ne4 {[%clk 0:02:15.1]} 16. a3 {[%clk 0:02:38.2]} 16...
Bc7 {[%clk 0:02:11.3]} 17. Nd2 {[%clk 0:02:35.8]} 1-0

[Event "Early-Titled-Tuesday-Blitz-November-28-2023"]
[Site "Chess.com"]
[Date "2023.11.28"]
[Round "3"]
[White "zozik"]
[Black "Nechitaylo_Nikita"]
[Result "0-1"]
[WhiteElo "2357"]
[BlackElo "2211"]
[TimeControl "180+1"]
[EndTime "8:26:13 PST"]
[Termination "Nechitaylo_Nikita won by resignation"]

1. d4 {[%clk 0:02:58.7]} 1... Nf6 {[%clk 0:03:00]} 2. Nf3 {[%clk 0:02:57.3]}
2... e6 {[%clk 0:03:00.5]} 3. g3 {[%clk 0:02:56.4]} 3... d5 {[%clk 0:02:57.5]}
4. Bg2 {[%clk 0:02:55.4]} 4... c5 {[%clk 0:02:58]} 5. O-O {[%clk 0:02:54.4]}
5... Nc6 {[%clk 0:02:58.6]} 6. c4 {[%clk 0:02:53.6]} 6... dxc4 {[%clk
0:02:54.4]} 7. Qa4 {[%clk 0:02:51.2]} 7... cxd4 {[%clk 0:02:44]} 8. Ne5 {[%clk
0:02:24.3]} 8... Bd7 {[%clk 0:02:25.5]} 9. Nxc6 {[%clk 0:02:19.8]} 9... Qb6
{[%clk 0:02:18.5]} 10. Qxc4 {[%clk 0:02:11.2]} 10... Bxc6 {[%clk 0:02:18.4]} 11.
Rd1 {[%clk 0:01:46.7]} 11... Bc5 {[%clk 0:02:04.6]} 12. a3 {[%clk 0:01:39.3]}
12... a5 {[%clk 0:02:01.1]} 13. Nd2 {[%clk 0:01:33.1]} 13... Bb5 {[%clk
0:01:56.6]} 14. Qc2 {[%clk 0:01:29.4]} 14... Bxe2 {[%clk 0:01:56]} 15. Nc4
{[%clk 0:01:28.3]} 15... Bxd1 {[%clk 0:01:40.4]} 16. Nxb6 {[%clk 0:01:25.4]}
16... Bxc2 {[%clk 0:01:40.6]} 17. Nxa8 {[%clk 0:01:25.9]} 17... Kd7 {[%clk
0:01:36.2]} 18. Bxb7 {[%clk 0:01:22]} 18... Be4 {[%clk 0:01:36.5]} 19. Bxe4
{[%clk 0:01:18.5]} 19... Nxe4 {[%clk 0:01:37.4]} 20. b4 {[%clk 0:01:19]} 20...
Ba7 {[%clk 0:01:29.5]} 21. bxa5 {[%clk 0:01:13.6]} 21... Rxa8 {[%clk 0:01:29.4]}
22. Bb2 {[%clk 0:01:12.5]} 22... d3 {[%clk 0:01:27.7]} 0-1

[Event "Early-Titled-Tuesday-Blitz-November-28-2023"]
[Site "Chess.com"]
[Date "2023.11.28"]
[Round "3"]
[White "spotbet"]
[Black "dmosesov"]
[Result "0-1"]
[WhiteElo "2428"]
[BlackElo "2612"]
[TimeControl "180+1"]
[EndTime "8:26:14 PST"]
[Termination "dmosesov won by resignation"]

1. e4 {[%clk 0:03:00.9]} 1... Nf6 {[%clk 0:02:59.2]} 2. e5 {[%clk 0:02:59.7]}
2... Nd5 {[%clk 0:02:59.9]} 3. d4 {[%clk 0:03:00.3]} 3... d6 {[%clk 0:03:00.4]}
4. exd6 {[%clk 0:03:01.1]} 4... cxd6 {[%clk 0:03:00.7]} 5. h3 {[%clk 0:03:02]}
5... g6 {[%clk 0:03:00.8]} 6. Nf3 {[%clk 0:03:02.6]} 6... Bg7 {[%clk 0:03:01.4]}
7. Be2 {[%clk 0:03:03.4]} 7... O-O {[%clk 0:03:01.6]} 8. c4 {[%clk 0:03:04.1]}
8... Nb6 {[%clk 0:03:00.2]} 9. O-O {[%clk 0:03:04.7]} 9... Nc6 {[%clk
0:03:00.9]} 10. Nc3 {[%clk 0:03:05]} 10... e5 {[%clk 0:02:59.6]} 11. Be3 {[%clk
0:02:58.5]} 11... h6 {[%clk 0:02:52.2]} 12. Rc1 {[%clk 0:02:58.2]} 12... Bf5
{[%clk 0:02:36.8]} 13. dxe5 {[%clk 0:02:57.2]} 13... dxe5 {[%clk 0:02:37.7]} 14.
Qxd8 {[%clk 0:02:57.2]} 14... Rfxd8 {[%clk 0:02:35.6]} 15. Bxb6 {[%clk
0:02:57.4]} 15... axb6 {[%clk 0:02:36.5]} 16. a3 {[%clk 0:02:56]} 16... Nd4
{[%clk 0:02:27.6]} 17. Nxd4 {[%clk 0:02:50.7]} 17... exd4 {[%clk 0:02:28.5]} 18.
Nd5 {[%clk 0:02:51.3]} 18... d3 {[%clk 0:02:28.5]} 19. Bf3 {[%clk 0:02:51.7]}
19... Bxb2 {[%clk 0:02:14]} 20. Rb1 {[%clk 0:02:52]} 20... Bd4 {[%clk
0:02:13.7]} 21. Ne7+ {[%clk 0:02:50.5]} 21... Kf8 {[%clk 0:02:09.5]} 22. Nxf5
{[%clk 0:02:50.9]} 22... gxf5 {[%clk 0:02:10.4]} 23. Rfd1 {[%clk 0:02:49.8]}
23... Rxa3 {[%clk 0:02:09.3]} 24. Bxb7 {[%clk 0:02:48.7]} 24... Re8 {[%clk
0:02:01.5]} 25. Rb5 {[%clk 0:02:44.9]} 25... Bc5 {[%clk 0:01:55.9]} 26. Bf3
{[%clk 0:02:39.3]} 26... f4 {[%clk 0:01:31.9]} 27. Rb2 {[%clk 0:02:38.3]} 27...
Rc3 {[%clk 0:01:18.6]} 28. Bd5 {[%clk 0:02:37]} 28... Rc2 {[%clk 0:01:02.6]} 29.
Rd2 {[%clk 0:02:22.6]} 29... Re1+ {[%clk 0:00:53.1]} 30. Kh2 {[%clk 0:02:22.7]}
30... Re2 {[%clk 0:00:54]} 31. Rxe2 {[%clk 0:02:08.5]} 31... dxe2 {[%clk
0:00:53.9]} 32. Rb1 {[%clk 0:02:09.1]} 32... Bxf2 {[%clk 0:00:53.5]} 0-1

[Event "Early-Titled-Tuesday-Blitz-November-28-2023"]
[Site "Chess.com"]
[Date "2023.11.28"]
[Round "3"]
[White "Gabix_94"]
[Black "VincentKeymer"]
[Result "0-1"]
[WhiteElo "2751"]
[BlackElo "3020"]
[TimeControl "180+1"]
[EndTime "8:26:16 PST"]
[Termination "VincentKeymer won by resignation"]

1. d4 {[%clk 0:02:55.6]} 1... Nf6 {[%clk 0:02:59.8]} 2. Nc3 {[%clk 0:02:56.1]}
2... d5 {[%clk 0:02:59.7]} 3. Bf4 {[%clk 0:02:56.6]} 3... g6 {[%clk 0:02:53.5]}
4. h3 {[%clk 0:02:53.2]} 4... Bg7 {[%clk 0:02:52.2]} 5. e3 {[%clk 0:02:52.3]}
5... O-O {[%clk 0:02:52.6]} 6. Nf3 {[%clk 0:02:52.7]} 6... c5 {[%clk 0:02:53.3]}
7. Be2 {[%clk 0:02:50]} 7... cxd4 {[%clk 0:02:52.1]} 8. exd4 {[%clk 0:02:49.2]}
8... Qb6 {[%clk 0:02:52.7]} 9. Rb1 {[%clk 0:02:42]} 9... Nc6 {[%clk 0:02:52.3]}
10. O-O {[%clk 0:02:41]} 10... Bf5 {[%clk 0:02:51.9]} 11. a3 {[%clk 0:02:38.2]}
11... Rac8 {[%clk 0:02:47.9]} 12. Re1 {[%clk 0:02:33.9]} 12... e6 {[%clk
0:02:36.5]} 13. Na4 {[%clk 0:02:29.2]} 13... Qa5 {[%clk 0:02:31.8]} 14. Nc5
{[%clk 0:02:11]} 14... Nxd4 {[%clk 0:02:29.9]} 15. Nxd4 {[%clk 0:02:11.6]} 15...
Qxc5 {[%clk 0:02:29]} 16. b4 {[%clk 0:02:03.2]} 16... Qb6 {[%clk 0:02:23.6]} 17.
Be3 {[%clk 0:01:56.3]} 17... Qc7 {[%clk 0:02:23]} 18. Nxf5 {[%clk 0:01:54.8]}
18... gxf5 {[%clk 0:02:23.9]} 19. Rc1 {[%clk 0:01:51.1]} 19... Ne4 {[%clk
0:02:22.4]} 20. c4 {[%clk 0:01:49.9]} 20... Nc3 {[%clk 0:02:19.1]} 21. Qd2
{[%clk 0:01:35.6]} 21... Nxe2+ {[%clk 0:02:17.1]} 22. Qxe2 {[%clk 0:01:35.9]}
22... dxc4 {[%clk 0:02:17.8]} 23. b5 {[%clk 0:01:32.6]} 23... Rfd8 {[%clk
0:02:16.1]} 24. a4 {[%clk 0:01:29.4]} 24... c3 {[%clk 0:02:12.7]} 25. Rc2 {[%clk
0:01:24.4]} 25... Qc4 {[%clk 0:02:11.9]} 26. Qh5 {[%clk 0:01:23.2]} 26... Qxa4
{[%clk 0:02:06.6]} 27. Rec1 {[%clk 0:01:23.7]} 27... f4 {[%clk 0:02:05.1]} 28.
Qg4 {[%clk 0:01:17.2]} 28... Rc4 {[%clk 0:01:57.9]} 29. Rd1 {[%clk 0:01:11.8]}
29... Rf8 {[%clk 0:01:47.7]} 0-1